fUSD/lending_fUSD_20251118
["ID","MTS","AMOUNT","RATE_DAILY","PERIOD"]
[394363298,1763496637775,-428.10495749,0.00035778,2]
[394363460,1763496639452,-151.0,0.00026186,2]
[394363462,1763496639463,-1170.89504251,0.00035778,2]
[394363464,1763496639472,-821.0,0.00035778,2]
[394363466,1763496639482,-793.0,0.00035778,2]
[394363468,1763496639491,-1276.0,0.00035778,2]
[394363471,1763496639504,-1191.0,0.00035778,2]
[394363473,1763496639513,-907.0,0.00035778,2]
[394363475,1763496639523,-339.83878009,0.00035778,2]
[394363477,1763496639535,-1264.16121991,0.00035778,2]
[394363479,1763496639545,-3540.08518378,0.00035778,2]
[394363481,1763496639556,-251.37,0.00035778,2]
[394363483,1763496639568,-1341.0,0.00035778,2]
[394363486,1763496639579,-1357.54481622,0.00035778,2]
[394363488,1763496639589,-693.23403003,0.00035778,2]
[394363492,1763496639616,-11.76596997,0.00035778,2]
[394363494,1763496639626,-805.54837987,0.000358,2]
[394363500,1763496639672,-663.24313856,0.000358,2]
[394363502,1763496639684,-531.20848157,0.000358,2]
[394363504,1763496639694,-166.66,0.0003622,30]
[394363506,1763496639703,-500.0,0.00036786,30]
[394363508,1763496639713,-500.0,0.00036921,30]
[394363510,1763496639723,-166.66,0.00036923,30]
[394363512,1763496639732,-635.47151843,0.00037,10]
[394363514,1763496639744,-132.80798157,0.00037,10]
[394363516,1763496639754,-150.0,0.00037332,7]
[394363519,1763496639763,-150.0,0.00037332,7]
[394363521,1763496639773,-2.4131699,0.00037428,2]
[394363523,1763496639785,-194.7768301,0.00037428,2]
[394363525,1763496639795,-527.99,0.00037479,2]
[394363527,1763496639804,-150.0,0.00037502,2]
[394363529,1763496639814,-732.27714596,0.00037502,2]
[394363812,1763496642585,-317.12506238,0.00032778,2]
[394363814,1763496642597,-243.87493762,0.00032778,2]
[394363816,1763496642608,-285.26368044,0.00037502,2]
[394363818,1763496642618,-150.0,0.00037502,2]
[394363820,1763496642627,-1361.1480805,0.00037502,2]
[394363822,1763496642639,-3583.24167825,0.00037502,2]
[394363825,1763496642650,-2028.19670444,0.00037502,2]
[394363848,1763496642858,-1218.59043228,0.00037502,2]
[394363854,1763496642913,-367.12951943,0.00037502,2]
[394363856,1763496642923,-59.07792201,0.00037502,2]
[394363859,1763496642935,-90.92207799,0.00037502,2]
[394363861,1763496642945,-543.64343637,0.00037502,2]
[394364124,1763496645624,-1191.0,0.00032778,2]
[394364126,1763496645634,-609.0,0.00037502,2]
[394364679,1763496708676,554.45,0.00013699,2]
[394364686,1763496838571,1000.0,0.00041693,30]
[394364690,1763496875699,1000.84,0.00041693,30]
[394364723,1763496921084,1000.0,0.00041693,30]
[394364724,1763496921337,1000.0,0.00041693,30]
[394364725,1763496921569,1000.0,0.00041693,30]
[394364726,1763496921824,1000.0,0.00041693,30]
[394364727,1763496922149,920.46777344,0.00041693,30]
[394364828,1763497110005,50000.0,0.00041694,36]
[394364839,1763497249306,150.0,0.000175,2]
[394364973,1763497513049,1497.54403019,0.00041694,30]
[394364975,1763497515590,1172.63720025,0.00041694,30]
[394364977,1763497521191,2112.49763214,0.00041694,30]
[394364979,1763497531122,626.18,0.0001574,2]
[394364980,1763497531360,626.18,0.00016568,2]
[394364981,1763497531571,626.18,0.00017397,2]
[394364982,1763497533884,2331.46896055,0.00041694,30]
[394364984,1763497540432,1487.91642652,0.00041694,30]
[394364985,1763497562442,2063.94319091,0.00041694,30]
[394364986,1763497570137,1529.63122695,0.00041694,30]
[394364987,1763497579642,2000.0,0.00041694,30]
[394364994,1763497614452,5000.00094715,0.000162,5]
[394364996,1763497620407,2053.69203367,0.00041694,30]
[394365000,1763497673328,1517.01,0.00017,2]
[394365001,1763497673371,207825.55312775,0.00017,2]
[394365010,1763497701283,11066.34521784,0.00015,2]
[394365012,1763497704079,1156.29164757,0.00041694,30]
[394365013,1763497704324,1356.90867364,0.00041694,30]
[394365014,1763497704978,1725.7672373,0.00041694,30]
[394365015,1763497705397,1863.94865392,0.00041694,30]
[394365016,1763497706428,1601.83717248,0.00041694,30]
[394365017,1763497706993,1550.60778148,0.00041694,30]
[394365018,1763497707378,2072.67426848,0.00041694,30]
[394365023,1763497711639,1343.22813784,0.00041694,30]
[394365026,1763497713167,231.17654441,0.000154,2]
[394365035,1763497716774,1586.00184463,0.00041694,30]
[394365038,1763497719696,2056.37425653,0.00041694,30]
[394365041,1763497719898,1236.1227134,0.00041694,30]
[394365047,1763497722221,1453.45925211,0.00041694,30]
[394365076,1763497831602,-626.18,0.00018225,2]
[394365077,1763497831612,-626.18,0.00019053,2]
[394365078,1763497831622,-626.18,0.00019882,2]
[394365079,1763497831632,-1200.0,0.00019999,2]
[394365080,1763497831641,-1200.0,0.00019999,2]
[394365081,1763497831651,-300.0,0.00019999,2]
[394365082,1763497831660,-705.0,0.00019999,2]
[394365083,1763497831668,-589.71754889,0.0002,5]
[394365084,1763497831680,-864.11784612,0.0002,5]
[394365085,1763497831690,-6937.54735484,0.0002,5]
[394365086,1763497831702,-551.77582267,0.0002,5]
[394365087,1763497831713,-2317.08414925,0.0002,5]
[394365088,1763497831724,-660.1,0.0002,5]
[394365089,1763497831736,-49319.98343997,0.0002,5]
[394365090,1763497831748,-229.63192026,0.0002,5]
[394365091,1763497831758,-165.73272193,0.00020187,2]
[394365092,1763497831772,-342.62916634,0.00020187,2]
[394365093,1763497831784,-211.82083366,0.00020187,2]
[394365094,1763497831793,-151.0,0.00020297,2]
[394365095,1763497831802,-151.0,0.00020314,2]
[394365096,1763497831812,-151.0,0.00020324,2]
[394365097,1763497831821,-151.0,0.00020363,2]
[394365098,1763497831831,-271.3,0.00020406,2]
[394365099,1763497831841,-626.18,0.0002071,2]
[394365100,1763497831850,-479.06402154,0.00020862,2]
[394365101,1763497831860,-626.18,0.00021539,2]
[394365102,1763497831869,-300.0,0.00021777,2]
[394365103,1763497831878,-1200.0,0.00021881,2]
[394365104,1763497831887,-626.18,0.00022367,2]
[394365105,1763497831897,-626.18,0.00023195,2]
[394365107,1763497831906,-626.18,0.00024024,2]
[394365109,1763497831915,-223.4,0.00024658,2]
[394365111,1763497831925,-626.18,0.00024852,2]
[394365113,1763497831934,-999.0,0.00025533,3]
[394365116,1763497831943,-626.18,0.00025681,2]
[394365119,1763497831953,-225.12187473,0.000261,2]
[394365121,1763497831962,-160.16,0.00026468,2]
[394365123,1763497831975,-626.18,0.00026509,2]
[394365125,1763497831984,-165.73272193,0.00026676,2]
[394365127,1763497831994,-554.45,0.00026676,2]
[394365128,1763497832003,-626.18,0.00027338,2]
[394365129,1763497832012,-223.4,0.00027743,2]
[394365130,1763497832022,-626.18,0.00028166,2]
[394365131,1763497832031,-626.18,0.00028994,2]
[394365132,1763497832041,-1928.81,0.00029009,2]
[394365133,1763497832050,-150.99,0.00029009,2]
[394365134,1763497832062,-265.73,0.0002922,14]
[394365135,1763497832071,-153.0,0.00029241,2]
[394365136,1763497832080,-153.0,0.00029241,2]
[394365137,1763497832089,-153.0,0.00029241,2]
[394365138,1763497832098,-153.0,0.00029241,2]
[394365139,1763497832108,-153.0,0.00029241,2]
[394365140,1763497832117,-153.0,0.00029241,2]
[394365141,1763497832127,-153.0,0.00029241,2]
[394365142,1763497832137,-153.0,0.00029241,2]
[394365143,1763497832146,-153.0,0.00029241,2]
[394365144,1763497832156,-153.0,0.00029241,2]
[394365145,1763497832165,-153.0,0.00029241,2]
[394365146,1763497832178,-153.0,0.00029241,2]
[394365147,1763497832187,-265.73,0.00029494,14]
[394365148,1763497832196,-1000.0,0.0002958,2]
[394365149,1763497832205,-265.75090228,0.00029768,14]
[394365150,1763497832215,-626.18,0.00029823,2]
[394365151,1763497832225,-626.18,0.00030651,2]
[394365152,1763497832234,-223.4,0.00030828,2]
[394365153,1763497832244,-626.18,0.0003148,2]
[394365154,1763497832253,-175.4,0.00031724,120]
[394365155,1763497832263,-500.0,0.00031918,2]
[394365156,1763497832273,-1588.37038701,0.00031963,30]
[394365157,1763497832289,-91.85650638,0.00031963,30]
[394365158,1763497832298,-2270.19217302,0.00032401,2]
[394365159,1763497832309,-2754.99879302,0.00032401,2]
[394365161,1763497837716,-151.0,0.00020279,2]
[394365163,1763497837726,-263.18025489,0.000324,2]
[394365341,1763497839563,-100.21453593,0.000324,2]
[394365344,1763497839573,-500.0,0.000324,2]
[394365346,1763497839583,-355.23375567,0.000324,2]
[394365348,1763497839592,-500.0,0.000324,2]
[394365350,1763497839602,-500.0,0.000324,2]
[394365352,1763497839612,-500.0,0.000324,2]
[394365354,1763497839621,-500.0,0.000324,2]
[394365356,1763497839631,-500.0,0.000324,2]
[394365358,1763497839640,-17902.68094152,0.00032401,2]
[394365360,1763497839652,-783.987019,0.00032401,2]
[394365690,1763497842729,-257942.23124195,0.00032401,2]
[394366005,1763497845765,-678.189999,0.00032401,2]
[394366010,1763497845824,-4274.1804734,0.00032401,2]
[394366011,1763497845836,-956.0,0.00032401,2]
[394366013,1763497845847,-7977.658725,0.00032401,2]
[394366014,1763497845858,-14787.49047847,0.00032401,2]
[394366028,1763497846044,-1882.92960493,0.00032401,2]
[394366033,1763497846103,-759.73972054,0.00032401,2]
[394366035,1763497846114,-17841.61494014,0.00032401,2]
[394366036,1763497846125,-1112.09350209,0.00032401,2]
[394368010,1763498193300,-300.0,0.00023461,119]
[394368180,1763499031797,-304.41616689,0.00026,2]
[394368181,1763499031808,-151.0,0.00026058,2]
[394368182,1763499031819,-565.12431505,0.00028487,2]
[394368183,1763499031835,-922.13592424,0.00028487,2]
[394368184,1763499031850,-654.09925516,0.00028487,2]
[394368185,1763499031863,-637.61050555,0.00028487,2]
[394368186,1763499031873,-152.61827094,0.00029049,58]
[394368187,1763499031883,-709.77122351,0.00029148,2]
[394368188,1763499031895,-490.22877649,0.00029148,2]
[394368189,1763499031905,-300.0,0.00029148,2]
[394368190,1763499031915,-265.73,0.00029149,14]
[394368191,1763499031925,-153.0,0.00029149,2]
[394368192,1763499031935,-153.0,0.00029149,2]
[394368193,1763499031945,-153.0,0.00029149,2]
[394368194,1763499031954,-153.0,0.00029149,2]
[394368196,1763499031964,-153.0,0.00029149,2]
[394368198,1763499031974,-153.0,0.00029149,2]
[394368200,1763499031984,-153.0,0.00029149,2]
[394368202,1763499031993,-153.0,0.00029149,2]
[394368204,1763499032003,-153.0,0.00029149,2]
[394368205,1763499032013,-501.57452032,0.000292,2]
[394368208,1763499032027,-265.73,0.00029423,14]
[394368210,1763499032038,-265.74784937,0.00029697,14]
[394368212,1763499032047,-152.61827093,0.0002983,60]
[394368214,1763499032057,-152.61827093,0.00030611,62]
[394368216,1763499032068,-15286.35603598,0.00031,2]
[394368218,1763499032077,-500.0,0.00031071,2]
[394368219,1763499032086,-6129.92535457,0.000311,7]
[394368221,1763499032096,-150.0,0.00031229,2]
[394368223,1763499032106,-150.0,0.00031229,120]
[394368224,1763499032118,-792.0,0.00031229,2]
[394368225,1763499032127,-300.0,0.00031276,2]
[394368226,1763499032137,-152.61827093,0.00031392,64]
[394368227,1763499032147,-503.53229709,0.00031495,4]
[394368228,1763499032157,-154.0,0.00031499,2]
[394368229,1763499032167,-2000.0,0.000315,2]
[394368230,1763499032176,-1200.0,0.00031578,3]
[394368231,1763499032185,-609.0,0.00031595,2]
[394368232,1763499032194,-1318.0,0.00031595,2]
[394368233,1763499032204,-3432.0,0.00031595,2]
[394368234,1763499032213,-575.0,0.00031595,2]
[394368235,1763499032433,-160.203,0.00031595,2]
[394368236,1763499032444,-1599.0,0.00031595,2]
[394368237,1763499032454,-897.952,0.00031595,2]
[394368238,1763499032465,-907.0,0.00031595,2]
[394368239,1763499032474,-1276.0,0.00031595,2]
[394368240,1763499032484,-937.507,0.00031595,2]
[394368241,1763499032494,-250.0,0.00031595,2]
[394368242,1763499032504,-705.0,0.00031595,2]
[394368243,1763499032513,-150.0,0.00031595,2]
[394368244,1763499032523,-6490.0,0.00031595,2]
[394368245,1763499032533,-150.0,0.00031595,2]
[394368246,1763499032543,-1604.0,0.00031595,2]
[394368247,1763499032553,-5000.0,0.00031598,2]
[394368248,1763499032562,-500.0,0.000316,5]
[394368249,1763499032572,-322.46058965,0.000316,5]
[394368250,1763499032581,-500.0,0.00031723,30]
[394368251,1763499032591,-1000.0,0.00031861,2]
[394368252,1763499032601,-400.0,0.000319,11]
[394368253,1763499032610,-500.0,0.00031962,30]
[394368254,1763499032619,-180.0,0.00031963,30]
[394368255,1763499032628,-180.0,0.00031963,30]
[394368256,1763499032638,-180.0,0.00031963,30]
[394368257,1763499032648,-162.17814956,0.00031963,30]
[394368258,1763499032658,-150.0,0.00031963,2]
[394368259,1763499032670,-500.0,0.00031963,30]
[394368260,1763499032686,-164.0,0.00031963,30]
[394368261,1763499032697,-500.0,0.0003199,30]
[394368262,1763499032707,-5000.0,0.00032,7]
[394368263,1763499032717,-500.0,0.00032018,30]
[394368264,1763499032726,-500.0,0.00032045,30]
[394368265,1763499032736,-500.0,0.00032073,30]
[394368266,1763499032746,-500.0,0.000321,30]
[394368267,1763499032773,-500.0,0.00032127,30]
[394368268,1763499032786,-307.51752004,0.00032155,30]
[394368269,1763499032796,-507.2530192,0.00032173,5]
[394368270,1763499032806,-152.61827093,0.00032173,66]
[394368271,1763499032816,-595.21937534,0.00032173,2]
[394368272,1763499032827,-202.15959693,0.00032173,5]
[394368273,1763499032838,-500.0,0.0003219,2]
[394368274,1763499032849,-500.0,0.0003219,2]
[394368275,1763499032859,-184.98006759,0.0003219,2]
[394368276,1763499032870,-428.35930618,0.0003219,2]
[394368277,1763499032880,-116234.471798,0.00032191,3]
[394368278,1763499032890,-254.37635357,0.000322,2]
[394368279,1763499032899,-149811.09449027,0.00032201,2]
[394368280,1763499032915,-76143.49546416,0.00032201,2]
[394368281,1763499032927,-326670.9402643,0.00032201,2]
[394368282,1763499032939,-190868.3291898,0.00032201,2]
[394368283,1763499032951,-3839.66373871,0.00032201,2]
[394368284,1763499032963,-1488.09949627,0.00032201,2]
[394368285,1763499032975,-6131.95368456,0.00032201,2]
[394368286,1763499037810,-4312.66566898,0.00032201,2]
[394368287,1763499037867,-733.75800295,0.00032201,2]
[394368288,1763499037882,-500.0,0.00032273,5]
[394368289,1763499037893,-503.73300027,0.00032273,5]
[394368290,1763499037903,-3048.70899678,0.0003228,3]
[394368291,1763499037922,-1077.30901779,0.0003228,3]
[394368292,1763499037935,-1510.0,0.0003228,3]
[394368475,1763499039950,-1865.2,0.0003228,3]
[394368477,1763499039962,-1540.0,0.0003228,3]
[394368802,1763499042921,-151.0,0.0002687,2]
[394368804,1763499042930,-615.226,0.00031595,2]
[394368806,1763499042941,-118.412977,0.0003228,3]
[394369111,1763499045903,-4478.59903356,0.0003228,3]
[394369113,1763499045915,-1438.13809385,0.0003228,3]
[394369115,1763499045927,-589.84531789,0.0003228,3]
[394369138,1763499046118,-865.49725785,0.0003228,3]
[394369140,1763499046130,-73.21384788,0.0003228,3]
[394369142,1763499046139,-387.92732572,0.00032291,3]
[394369144,1763499046150,-16216.99721688,0.00032291,3]
[394369146,1763499046159,-2503.1368056,0.00032301,2]
[394369148,1763499046171,-940.76339569,0.00032301,2]
[394369151,1763499046183,-955.21962602,0.00032301,2]
[394369153,1763499046194,-453.0,0.00032301,2]
[394369155,1763499046206,-392.48365351,0.00032301,2]
[394369203,1763499077680,500.0,0.00041697,30]
[394369208,1763499139127,159.24625432,0.00041697,30]
[394369209,1763499212311,1000.0,0.00041697,30]
[394369253,1763499880969,175.4,0.0002882,120]
[394369254,1763499882211,1191.22,0.00041695,120]
[394369255,1763499882451,1191.22,0.00041695,120]
[394369256,1763499882722,1191.22,0.00041695,120]
[394369257,1763499882998,1191.22,0.00041695,120]
[394369258,1763499883249,1191.22,0.00041695,120]
[394369259,1763499883510,1191.22,0.00041695,120]
[394369260,1763499883762,1191.22,0.00041695,120]
[394369261,1763499883999,1191.22,0.00041695,120]
[394369262,1763499884271,1191.22,0.00041695,120]
[394369263,1763499884531,1191.22,0.00041695,120]
[394369264,1763499884771,1191.22,0.00041695,120]
[394369265,1763499885063,1191.22,0.00041695,120]
[394369266,1763499885333,1191.22,0.00041695,120]
[394369267,1763499885575,1191.22,0.00041695,120]
[394369268,1763499885819,1191.22,0.00041695,120]
[394369269,1763499886057,1191.22,0.00041695,120]
[394369270,1763499886301,1191.22,0.00041695,120]
[394369271,1763499886535,1191.22,0.00041695,120]
[394369272,1763499886778,1191.22,0.00041695,120]
[394369273,1763499887015,1191.22,0.00041695,120]
[394369274,1763499887266,1191.22,0.00041695,120]
[394369275,1763499887512,1191.22,0.00041695,120]
[394369276,1763499887833,1191.22,0.00041695,120]
[394369277,1763499888427,1191.2691487,0.00041695,120]
[394369278,1763499955407,42519.72,0.00041695,30]
[394369279,1763500145308,363.30752089,0.00041695,120]
[394369284,1763500231961,-502.30842797,0.000241,2]
[394369285,1763500231972,-2117.00277681,0.00024106,2]
[394369286,1763500231982,-300.0,0.00024133,2]
[394369287,1763500231992,-250.0,0.00024133,2]
[394369288,1763500232001,-180.27654404,0.00024166,2]
[394369289,1763500232011,-151.0,0.00024302,2]
[394369290,1763500232021,-151.0,0.00024386,2]
[394369291,1763500232030,-162.19474406,0.00024407,2]
[394369293,1763500232039,-151.0,0.00024454,2]
[394369294,1763500232050,-195.34258665,0.00024512,2]
[394369295,1763500232059,-479.06402154,0.00024519,2]
[394369296,1763500232068,-151.0,0.00024565,2]
[394369297,1763500232078,-500.0,0.00024631,2]
[394369298,1763500232087,-389.38721475,0.00024631,2]
[394369299,1763500232097,-180.27654404,0.0002562,2]
[394369300,1763500232109,-300.0,0.00026509,2]
[394369301,1763500232119,-1200.0,0.00026509,2]
[394369302,1763500232129,-300.0,0.0002651,2]
[394369303,1763500232138,-195.0,0.0002651,2]
[394369304,1763500232147,-250.0,0.0002651,2]
[394369305,1763500232157,-200.0,0.00028657,2]
[394369306,1763500232166,-420.0,0.00028674,2]
[394369307,1763500232176,-1200.0,0.00028801,2]
[394369308,1763500232191,-1200.0,0.00029212,2]
[394369309,1763500232208,-300.0,0.00029212,2]
[394369310,1763500232224,-550.0,0.00029213,2]
[394369311,1763500232236,-153.0,0.00029214,2]
[394369312,1763500232249,-153.0,0.00029214,2]
[394369313,1763500232261,-153.0,0.00029214,2]
[394369314,1763500232274,-153.0,0.00029214,2]
[394369315,1763500232285,-153.0,0.00029214,2]
[394369316,1763500232296,-153.0,0.00029214,2]
[394369317,1763500232306,-153.0,0.00029214,2]
[394369318,1763500232316,-153.0,0.00029214,2]
[394369319,1763500232327,-153.0,0.00029214,2]
[394369320,1763500232338,-153.0,0.00029214,2]
[394369322,1763500232350,-153.0,0.00029214,2]
[394369323,1763500232360,-153.0,0.00029214,2]
[394369325,1763500232371,-153.0,0.00029214,2]
[394369327,1763500232383,-153.0,0.00029214,2]
[394369328,1763500232393,-153.0,0.00029214,2]
[394369330,1763500232404,-153.0,0.00029214,2]
[394369332,1763500232416,-265.73,0.00029214,14]
[394369333,1763500232427,-166.66,0.00029389,30]
[394369334,1763500232439,-265.73,0.00029488,14]
[394369335,1763500232450,-150.0,0.00029596,2]
[394369336,1763500232461,-265.75090228,0.00029762,14]
[394369337,1763500232473,-499.99,0.00029815,2]
[394369338,1763500232496,-1928.81,0.00029815,2]
[394369339,1763500232515,-3192.26,0.00029815,2]
[394369340,1763500232529,-150.99,0.00029815,2]
[394369341,1763500232544,-299.99,0.00029815,12]
[394369342,1763500232560,-150.99,0.00029815,2]
[394369343,1763500232572,-2000.0,0.000299,2]
[394369344,1763500232586,-174.0,0.0003,14]
[394369345,1763500232599,-170.0,0.0003,14]
[394369346,1763500232612,-166.66,0.00030008,30]
[394369347,1763500232623,-200.0,0.00030328,2]
[394369348,1763500232635,-166.66,0.00030627,30]
[394369349,1763500232646,-400.0,0.000308,11]
[394369350,1763500232657,-800.0,0.000309,11]
[394369351,1763500232667,-1000.0,0.00031,9]
[394369352,1763500232679,-1000.0,0.00031,8]
[394369353,1763500232692,-1000.0,0.00031,3]
[394369354,1763500232704,-417.0,0.00031,5]
[394369355,1763500232720,-850.0,0.000312,6]
[394369356,1763500232731,-503.53229708,0.0003122,4]
[394369357,1763500232744,-166.66,0.00031245,30]
[394369358,1763500232757,-1000.0,0.00031268,2]
[394369359,1763500232770,-250.0,0.00031283,2]
[394369360,1763500232782,-8021.58165807,0.00031284,2]
[394369361,1763500232795,-714.52050663,0.00031284,2]
[394369362,1763500232807,-2751.0,0.0003132,120]
[394369363,1763500232823,-163.63,0.00031365,2]
[394369364,1763500232836,-178.0634475,0.00031374,2]
[394369365,1763500232848,-138824.09380765,0.00031375,2]
[394369366,1763500232865,-2205.46447383,0.00031375,2]
[394369367,1763500232880,-40938.95299629,0.00031375,2]
[394369370,1763500237911,-318.36712183,0.00031375,2]
[394369371,1763500237968,-599.24625432,0.00031375,2]
[394369586,1763500240293,-151.0,0.00027045,2]
[394369588,1763500240304,-577113.87534608,0.00031375,2]
[394369590,1763500240315,-195.34258665,0.00031384,2]
[394369592,1763500240326,-1000.0,0.00031385,2]
[394369594,1763500240337,-3005.8051,0.00031385,2]
[394369596,1763500240349,-1000.0,0.00031385,120]
[394369599,1763500240360,-5975.0616,0.00031395,2]
[394369601,1763500240373,-12769.49016403,0.00031395,2]
[394369603,1763500240385,-13507.6440009,0.00031475,3]
[394369606,1763500240397,-310675.812022,0.00031485,3]
[394369608,1763500240408,-153.059919,0.00031495,31]
[394369610,1763500240418,-151.0,0.00031495,31]
[394369612,1763500240428,-153.39963,0.00031495,7]
[394369614,1763500240439,-151.0,0.00031495,31]
[394369616,1763500240449,-151.0,0.00031495,31]
[394369618,1763500240458,-151.0,0.00031495,31]
[394369620,1763500240469,-156.302217,0.00031495,31]
[394369622,1763500240479,-157.0,0.000315,7]
[394369624,1763500240490,-1200.0,0.0003151,3]
[394369626,1763500240502,-150.0,0.00031595,2]
[394369629,1763500240515,-609.0,0.00031595,2]
[394369631,1763500240527,-3432.0,0.00031595,2]
[394369633,1763500240539,-1318.0,0.00031595,2]
[394369636,1763500240551,-1599.0,0.00031595,2]
[394369638,1763500240563,-821.0,0.00031595,2]
[394369640,1763500240575,-793.0,0.00031595,2]
[394369641,1763500240585,-1276.0,0.00031595,2]
[394369642,1763500240596,-6490.0,0.00031595,2]
[394369643,1763500240607,-1604.0,0.00031595,2]
[394369644,1763500240617,-166.66,0.00031864,30]
[394369645,1763500240627,-1588.37038701,0.00031952,30]
[394369646,1763500240638,-1470.87788,0.0003198,2]
[394369647,1763500240648,-181.77334926,0.00032155,2]
[394369648,1763500240659,-500.0,0.00032155,30]
[394369649,1763500240670,-500.0,0.00032173,5]
[394369651,1763500240680,-500.0,0.00032182,30]
[394369653,1763500240691,-151.0,0.0003219,31]
[394369655,1763500240704,-238.269339,0.0003219,31]
[394369657,1763500240716,-471.18504705,0.0003219,2]
[394369660,1763500240727,-150.42,0.0003219,2]
[394369662,1763500240737,-163.63,0.0003219,2]
[394369664,1763500240748,-7675.9795984,0.000322,2]
[394369666,1763500240758,-42036.4957345,0.000322,2]
[394369668,1763500240769,-27423.9097561,0.000322,2]
[394369671,1763500240780,-766.7609058,0.000322,2]
[394369673,1763500240791,-151.0,0.000322,31]
[394369675,1763500240802,-1196.7349462,0.000322,2]
[394369677,1763500240812,-151.0,0.000322,31]
[394369679,1763500240823,-3273.4104599,0.000322,2]
[394369682,1763500240834,-273.574059,0.000322,30]
[394369684,1763500240845,-273.574059,0.000322,30]
[394369686,1763500240857,-273.574059,0.000322,30]
[394369688,1763500240867,-273.574059,0.000322,30]
[394369690,1763500240878,-151.0,0.000322,31]
[394369692,1763500240888,-151.0,0.000322,31]
[394369695,1763500240899,-151.0,0.000322,31]
[394369697,1763500240910,-151.0,0.000322,31]
[394369699,1763500240921,-151.0,0.000322,31]
[394369701,1763500240932,-500.0,0.0003221,30]
[394369704,1763500240942,-500.0,0.00032237,30]
[394369706,1763500240952,-500.0,0.00032265,30]
[394369708,1763500240962,-733.03272732,0.00032269,2]
[394369710,1763500240973,-500.0,0.00032292,30]
[394369712,1763500240984,-500.0,0.000323,2]
[394369714,1763500240994,-150.0,0.00032301,2]
[394369716,1763500241005,-286.670548,0.00032301,2]
[394369719,1763500241016,-150.0,0.00032301,2]
[394369721,1763500241027,-150.0,0.00032301,2]
[394369723,1763500241037,-150.0,0.00032301,2]
[394369725,1763500241048,-150.0,0.00032301,2]
[394369727,1763500241059,-150.0,0.00032301,2]
[394369730,1763500241070,-151.0,0.00032301,2]
[394369732,1763500241080,-151.0,0.00032301,2]
[394369734,1763500241091,-500.0,0.00032319,30]
[394369736,1763500241101,-201.81331758,0.00032328,2]
[394369738,1763500241112,-150.0,0.00032328,2]
[394369740,1763500241122,-150.0,0.00032328,2]
[394369742,1763500241133,-181.18562491,0.00032328,2]
[394369745,1763500241143,-229.55273169,0.00032328,2]
[394369747,1763500241153,-150.0,0.00032328,2]
[394369749,1763500241164,-500.0,0.00032347,30]
[394369751,1763500241174,-200.0,0.00032356,2]
[394369753,1763500241187,-150.0,0.00032356,2]
[394369756,1763500241199,-150.0,0.00032356,2]
[394369758,1763500241211,-22657.85509349,0.00032373,2]
[394369760,1763500241222,-500.0,0.00032373,5]
[394369762,1763500241234,-151.0,0.00032373,31]
[394369764,1763500241245,-500.0,0.00032374,30]
[394369766,1763500241255,-200.0,0.00032383,2]
[394369769,1763500241266,-266.41325239,0.00032383,2]
[394369771,1763500241278,-500.0,0.00032402,30]
[394369773,1763500241288,-8021.58165805,0.00032406,2]
[394369800,1763500241531,-273.574059,0.00032406,30]
[394369803,1763500241544,-273.574059,0.00032406,30]